[Event "Titled Tuesday Blitz June 6 Early 2023"]
[White "Hakobyan, Aram"]
[Black "Horvath, Dominik"]
[WhiteFideId "13306677"]
[BlackFideId "1642561"]
[WhiteElo "2584"]
[BlackElo "2407"]
[Result "1-0"]
[Round "3"]
[TimeControl "180+2"]
[Date "2023.06.06"]
[WhiteClock "0:00:07"]
[BlackClock "0:00:20"]
[Board "10"]

1. d4 {[%clk 0:03:00]}  Nf6 {[%clk 0:02:59]} 2. c4 {[%clk 0:03:01]}  e6 {[%clk 0:02:58]} 3. Nc3 {[%clk 0:03:02]}  Bb4 {[%clk 0:02:57]} 4. e3 {[%clk 0:03:02]}  O-O {[%clk 0:02:57]} 5. a3 {[%clk 0:03:02]}  Bxc3+ {[%clk 0:02:57]} 6. bxc3 {[%clk 0:03:03]}  d6 {[%clk 0:02:50]} 7. Ne2 {[%clk 0:03:03]}  e5 {[%clk 0:02:48]} 8. Ng3 {[%clk 0:03:04]}  Re8 {[%clk 0:02:47]} 9. f3 {[%clk 0:03:04]}  c5 {[%clk 0:02:40]} 10. Be2 {[%clk 0:02:48]}  Nc6 {[%clk 0:02:22]} 11. d5 {[%clk 0:02:48]}  Na5 {[%clk 0:02:20]} 12. e4 {[%clk 0:02:48]}  b6 {[%clk 0:02:20]} 13. Bd3 {[%clk 0:02:40]}  Ba6 {[%clk 0:02:19]} 14. Qe2 {[%clk 0:02:41]}  Nb3 {[%clk 0:02:09]} 15. Rb1 {[%clk 0:02:40]}  Nxc1 {[%clk 0:02:09]} 16. Rxc1 {[%clk 0:02:41]}  g6 {[%clk 0:01:58]} 17. O-O {[%clk 0:02:37]}  Nd7 {[%clk 0:01:54]} 18. Qd2 {[%clk 0:02:32]}  Qh4 {[%clk 0:01:52]} 19. Ne2 {[%clk 0:02:20]}  Re7 {[%clk 0:01:01]} 20. Kh1 {[%clk 0:02:14]}  Rae8 {[%clk 0:00:58]} 21. g3 {[%clk 0:02:04]}  Qf6 {[%clk 0:00:51]} 22. Rf2 {[%clk 0:02:03]}  Qg7 {[%clk 0:00:51]} 23. Rcf1 {[%clk 0:02:00]}  Nf6 {[%clk 0:00:47]} 24. g4 {[%clk 0:01:42]}  h5 {[%clk 0:00:45]} 25. h3 {[%clk 0:01:39]}  Kh7 {[%clk 0:00:44]} 26. Ng3 {[%clk 0:01:38]}  h4 {[%clk 0:00:38]} 27. Ne2 {[%clk 0:01:34]}  Nd7 {[%clk 0:00:38]} 28. Rg2 {[%clk 0:01:27]}  g5 {[%clk 0:00:36]} 29. Qd1 {[%clk 0:01:20]}  f6 {[%clk 0:00:33]} 30. Qa4 {[%clk 0:01:18]}  Nb8 {[%clk 0:00:34]} 31. Ng1 {[%clk 0:01:06]}  Rd8 {[%clk 0:00:34]} 32. f4 {[%clk 0:01:05]}  exf4 {[%clk 0:00:31]} 33. e5+ {[%clk 0:01:04]}  Kh6 {[%clk 0:00:31]} 34. e6 {[%clk 0:01:03]}  Bb7 {[%clk 0:00:24]} 35. Qb3 {[%clk 0:00:47]}  Na6 {[%clk 0:00:21]} 36. Nf3 {[%clk 0:00:44]}  Nc7 {[%clk 0:00:22]} 37. Bf5 {[%clk 0:00:44]}  b5 {[%clk 0:00:19]} 38. a4 {[%clk 0:00:45]}  a6 {[%clk 0:00:19]} 39. Kg1 {[%clk 0:00:42]}  Rb8 {[%clk 0:00:19]} 40. axb5 {[%clk 0:00:36]}  axb5 {[%clk 0:00:20]} 41. Rd2 {[%clk 0:00:33]}  bxc4 {[%clk 0:00:20]} 42. Qb6 {[%clk 0:00:34]}  Nxd5 {[%clk 0:00:18]} 43. Rxd5 {[%clk 0:00:24]}  Bxd5 {[%clk 0:00:17]} 44. Qxb8 {[%clk 0:00:25]}  Bxe6 {[%clk 0:00:17]} 45. Qxd6 {[%clk 0:00:24]}  Bxf5 {[%clk 0:00:18]} 46. gxf5 {[%clk 0:00:25]}  g4 {[%clk 0:00:18]} 47. Qxf4+ {[%clk 0:00:24]}  Kh5 {[%clk 0:00:19]} 48. hxg4+ {[%clk 0:00:13]}  Qxg4+ {[%clk 0:00:20]} 49. Qxg4+ {[%clk 0:00:13]}  Kxg4 {[%clk 0:00:21]} 50. Kf2 {[%clk 0:00:12]}  Kxf5 {[%clk 0:00:21]} 51. Nxh4+ {[%clk 0:00:12]}  Kg4 {[%clk 0:00:21]} 52. Nf3 {[%clk 0:00:11]}  f5 {[%clk 0:00:19]} 53. Rg1+ {[%clk 0:00:10]}  Kf4 {[%clk 0:00:20]} 54. Rh1 {[%clk 0:00:11]}  Ke4 {[%clk 0:00:19]} 55. Re1+ {[%clk 0:00:11]}  Kd3 {[%clk 0:00:19]} 56. Rxe7 {[%clk 0:00:12]}  Kxc3 {[%clk 0:00:20]} 57. Ne5 {[%clk 0:00:09]}  Kb3 {[%clk 0:00:20]} 58. Rc7 {[%clk 0:00:07]}  c3 {[%clk 0:00:19]} 59. Rxc5 {[%clk 0:00:07]}  c2 {[%clk 0:00:20]} 60. Nd3 {[%clk 0:00:07]}  f4 {[%clk 0:00:20]} 61. Kf3 {[%clk 0:00:07]} 1-0


[Site "https://www.chess.com"]

[Event "Titled Tuesday Blitz June 6 Early 2023"]
[White "Tabatabaei, M. Amin"]
[Black "Radzhabov, Rodion"]
[WhiteFideId "12521213"]
[BlackFideId "884715"]
[WhiteElo "2575"]
[BlackElo "2174"]
[Result "1-0"]
[Round "3"]
[TimeControl "180+2"]
[Date "2023.06.06"]
[WhiteClock "0:01:27"]
[BlackClock "0:00:12"]
[Board "13"]

1. Nf3 {[%clk 0:03:00]}  Nf6 {[%clk 0:02:54]} 2. b3 {[%clk 0:02:59]}  g6 {[%clk 0:02:54]} 3. Bb2 {[%clk 0:02:53]}  Bg7 {[%clk 0:02:54]} 4. g3 {[%clk 0:02:53]}  b6 {[%clk 0:02:53]} 5. Bg2 {[%clk 0:02:52]}  Bb7 {[%clk 0:02:54]} 6. c4 {[%clk 0:02:53]}  c5 {[%clk 0:02:54]} 7. d4 {[%clk 0:02:53]}  cxd4 {[%clk 0:02:52]} 8. Qxd4 {[%clk 0:02:54]}  O-O {[%clk 0:02:51]} 9. O-O {[%clk 0:02:54]}  d6 {[%clk 0:02:44]} 10. Rd1 {[%clk 0:02:51]}  Nbd7 {[%clk 0:02:36]} 11. Qh4 {[%clk 0:02:49]}  h6 {[%clk 0:02:28]} 12. Nc3 {[%clk 0:02:42]}  g5 {[%clk 0:02:23]} 13. Qd4 {[%clk 0:02:40]}  Ne4 {[%clk 0:02:02]} 14. Qe3 {[%clk 0:02:33]}  f5 {[%clk 0:01:59]} 15. Nd4 {[%clk 0:02:22]}  f4 {[%clk 0:01:22]} 16. Qc1 {[%clk 0:02:18]}  Bxd4 {[%clk 0:00:43]} 17. Rxd4 {[%clk 0:02:12]}  Nec5 {[%clk 0:00:43]} 18. Bxb7 {[%clk 0:02:07]}  Nxb7 {[%clk 0:00:44]} 19. gxf4 {[%clk 0:01:59]}  Qe8 {[%clk 0:00:33]} 20. fxg5 {[%clk 0:01:56]}  Qg6 {[%clk 0:00:32]} 21. Nd5 {[%clk 0:01:49]}  Rf7 {[%clk 0:00:27]} 22. Rg4 {[%clk 0:01:42]}  h5 {[%clk 0:00:26]} 23. Rg2 {[%clk 0:01:38]}  Raf8 {[%clk 0:00:24]} 24. Nf6+ {[%clk 0:01:36]}  exf6 {[%clk 0:00:19]} 25. gxf6 {[%clk 0:01:37]}  Qxg2+ {[%clk 0:00:19]} 26. Kxg2 {[%clk 0:01:34]}  Nxf6 {[%clk 0:00:20]} 27. f3 {[%clk 0:01:27]}  Nc5 {[%clk 0:00:16]} 28. Kh1 {[%clk 0:01:27]}  Kh7 {[%clk 0:00:16]} 29. Qc2+ {[%clk 0:01:26]}  Kh6 {[%clk 0:00:13]} 30. Rg1 {[%clk 0:01:26]}  Rg8 {[%clk 0:00:12]} 31. Bc1+ {[%clk 0:01:27]} 1-0


[Site "https://www.chess.com"]

[Event "Titled Tuesday Blitz June 6 Early 2023"]
[White "Itgelt, Khuyagtsogt"]
[Black "Lenderman, Aleksandr"]
[WhiteFideId "4902912"]
[BlackFideId "2021285"]
[WhiteElo "2227"]
[BlackElo "2607"]
[Result "1/2-1/2"]
[Round "3"]
[TimeControl "180+2"]
[Date "2023.06.06"]
[WhiteClock "0:00:10"]
[BlackClock "0:00:12"]
[Board "16"]

1. d4 {[%clk 0:03:00]}  e6 {[%clk 0:02:59]} 2. c4 {[%clk 0:02:59]}  b6 {[%clk 0:02:59]} 3. Nf3 {[%clk 0:02:54]}  Bb7 {[%clk 0:02:59]} 4. g3 {[%clk 0:02:49]}  Bb4+ {[%clk 0:02:59]} 5. Bd2 {[%clk 0:02:48]}  Bxf3 {[%clk 0:02:59]} 6. exf3 {[%clk 0:02:48]}  Bxd2+ {[%clk 0:02:59]} 7. Qxd2 {[%clk 0:02:48]}  Nf6 {[%clk 0:02:58]} 8. f4 {[%clk 0:02:47]}  d5 {[%clk 0:02:57]} 9. Bg2 {[%clk 0:02:47]}  O-O {[%clk 0:02:56]} 10. O-O {[%clk 0:02:47]}  Nc6 {[%clk 0:02:53]} 11. Rd1 {[%clk 0:02:43]}  Ne7 {[%clk 0:02:52]} 12. b3 {[%clk 0:02:40]}  Qd7 {[%clk 0:02:50]} 13. Nc3 {[%clk 0:02:40]}  Rad8 {[%clk 0:02:50]} 14. Rac1 {[%clk 0:02:39]}  c6 {[%clk 0:02:50]} 15. h3 {[%clk 0:02:34]}  Nf5 {[%clk 0:02:45]} 16. Ne2 {[%clk 0:02:21]}  Nd6 {[%clk 0:02:43]} 17. Qe3 {[%clk 0:02:13]}  Qb7 {[%clk 0:02:41]} 18. Bf3 {[%clk 0:02:12]}  Rd7 {[%clk 0:02:41]} 19. g4 {[%clk 0:02:11]}  Rfd8 {[%clk 0:02:41]} 20. Ng3 {[%clk 0:02:10]}  Qb8 {[%clk 0:02:38]} 21. Kg2 {[%clk 0:02:09]}  Re8 {[%clk 0:02:31]} 22. a4 {[%clk 0:02:08]}  a5 {[%clk 0:02:29]} 23. Rd2 {[%clk 0:02:02]}  Rb7 {[%clk 0:02:27]} 24. Rdd1 {[%clk 0:02:02]}  Rc8 {[%clk 0:02:26]} 25. h4 {[%clk 0:01:59]}  Re7 {[%clk 0:02:15]} 26. h5 {[%clk 0:01:59]}  dxc4 {[%clk 0:02:10]} 27. bxc4 {[%clk 0:01:58]}  c5 {[%clk 0:02:10]} 28. g5 {[%clk 0:01:47]}  cxd4 {[%clk 0:02:01]} 29. Qxd4 {[%clk 0:01:43]}  Nfe8 {[%clk 0:02:01]} 30. h6 {[%clk 0:01:30]}  Rec7 {[%clk 0:02:01]} 31. hxg7 {[%clk 0:01:24]}  Rxc4 {[%clk 0:02:00]} 32. Rxc4 {[%clk 0:01:25]}  Rxc4 {[%clk 0:02:00]} 33. Qe5 {[%clk 0:01:21]}  Rc5 {[%clk 0:01:48]} 34. Qd4 {[%clk 0:01:16]}  Rc4 {[%clk 0:01:43]} 35. Qe5 {[%clk 0:01:16]}  Rc5 {[%clk 0:01:25]} 36. Qd4 {[%clk 0:01:15]}  Nf5 {[%clk 0:01:19]} 37. Nxf5 {[%clk 0:01:08]}  Rxf5 {[%clk 0:01:20]} 38. Be4 {[%clk 0:00:40]}  Qxf4 {[%clk 0:00:55]} 39. Bxf5 {[%clk 0:00:39]}  Qxf5 {[%clk 0:00:56]} 40. Kf1 {[%clk 0:00:21]}  Qh3+ {[%clk 0:00:39]} 41. Ke1 {[%clk 0:00:17]}  Qh1+ {[%clk 0:00:39]} 42. Ke2 {[%clk 0:00:17]}  Qh5+ {[%clk 0:00:39]} 43. Ke1 {[%clk 0:00:16]}  Qh1+ {[%clk 0:00:24]} 44. Kd2 {[%clk 0:00:13]}  Qc6 {[%clk 0:00:22]} 45. Ke3 {[%clk 0:00:10]}  Nxg7 {[%clk 0:00:20]} 46. Qd8+ {[%clk 0:00:11]}  Ne8 {[%clk 0:00:20]} 47. Rd7 {[%clk 0:00:11]}  Qc3+ {[%clk 0:00:16]} 48. Kf4 {[%clk 0:00:08]}  Qc1+ {[%clk 0:00:15]} 49. Kg4 {[%clk 0:00:08]}  Qg1+ {[%clk 0:00:14]} 50. Kf3 {[%clk 0:00:08]}  Qh1+ {[%clk 0:00:14]} 51. Ke2 {[%clk 0:00:08]}  Qe4+ {[%clk 0:00:14]} 52. Kd2 {[%clk 0:00:09]}  Qf4+ {[%clk 0:00:12]} 53. Kc3 {[%clk 0:00:09]}  Qc1+ {[%clk 0:00:11]} 54. Kd3 {[%clk 0:00:09]}  Qd1+ {[%clk 0:00:11]} 55. Ke3 {[%clk 0:00:09]}  Qe1+ {[%clk 0:00:12]} 56. Kf3 {[%clk 0:00:08]}  Qh1+ {[%clk 0:00:12]} 57. Kg3 {[%clk 0:00:09]}  Qg1+ {[%clk 0:00:12]} 58. Kf3 {[%clk 0:00:10]}  Qh1+ {[%clk 0:00:12]} 1/2-1/2


[Site "https://www.chess.com"]

[Event "Titled Tuesday Blitz June 6 Early 2023"]
[White "Bjerre, Jonas Buhl"]
[Black "Fus, Jakub"]
[WhiteFideId "1444948"]
[BlackFideId "1193023"]
[WhiteElo "2525"]
[BlackElo "2335"]
[Result "1-0"]
[Round "3"]
[TimeControl "180+2"]
[Date "2023.06.06"]
[WhiteClock "0:00:16"]
[BlackClock "0:00:02"]
[Board "17"]

1. d4 {[%clk 0:03:00]}  e6 {[%clk 0:02:59]} 2. Nf3 {[%clk 0:03:00]}  Nf6 {[%clk 0:02:59]} 3. c4 {[%clk 0:02:59]}  d5 {[%clk 0:02:56]} 4. g3 {[%clk 0:02:59]}  Bb4+ {[%clk 0:02:56]} 5. Bd2 {[%clk 0:02:59]}  Be7 {[%clk 0:02:56]} 6. Bg2 {[%clk 0:02:59]}  c6 {[%clk 0:02:56]} 7. O-O {[%clk 0:02:59]}  Nbd7 {[%clk 0:02:56]} 8. Bc3 {[%clk 0:02:58]}  O-O {[%clk 0:02:40]} 9. Nbd2 {[%clk 0:02:57]}  b6 {[%clk 0:02:36]} 10. b4 {[%clk 0:02:56]}  Bb7 {[%clk 0:02:36]} 11. Qb3 {[%clk 0:02:53]}  Rb8 {[%clk 0:02:25]} 12. e3 {[%clk 0:02:38]}  c5 {[%clk 0:02:22]} 13. dxc5 {[%clk 0:02:39]}  bxc5 {[%clk 0:02:22]} 14. b5 {[%clk 0:02:39]}  Nb6 {[%clk 0:02:04]} 15. Ne5 {[%clk 0:02:23]}  Nfd7 {[%clk 0:01:53]} 16. Rfd1 {[%clk 0:02:05]}  Bf6 {[%clk 0:01:40]} 17. Nxd7 {[%clk 0:02:00]}  Nxd7 {[%clk 0:01:40]} 18. a4 {[%clk 0:01:46]}  d4 {[%clk 0:01:27]} 19. exd4 {[%clk 0:01:42]}  cxd4 {[%clk 0:01:27]} 20. Bb4 {[%clk 0:01:39]}  Be7 {[%clk 0:01:27]} 21. Bxb7 {[%clk 0:01:35]}  Rxb7 {[%clk 0:01:27]} 22. Ne4 {[%clk 0:01:35]}  Bxb4 {[%clk 0:00:39]} 23. Qxb4 {[%clk 0:01:36]}  Ne5 {[%clk 0:00:40]} 24. Nd6 {[%clk 0:01:10]}  Rd7 {[%clk 0:00:32]} 25. c5 {[%clk 0:01:10]}  Qa8 {[%clk 0:00:30]} 26. c6 {[%clk 0:01:09]}  Rc7 {[%clk 0:00:20]} 27. f4 {[%clk 0:01:05]}  Nxc6 {[%clk 0:00:16]} 28. bxc6 {[%clk 0:01:05]}  Qxc6 {[%clk 0:00:17]} 29. Rxd4 {[%clk 0:00:55]}  Qf3 {[%clk 0:00:13]} 30. Qd2 {[%clk 0:00:51]}  g6 {[%clk 0:00:07]} 31. Rd3 {[%clk 0:00:45]}  Qc6 {[%clk 0:00:06]} 32. Qg2 {[%clk 0:00:39]}  Qa6 {[%clk 0:00:03]} 33. Nb5 {[%clk 0:00:35]}  Rc5 {[%clk 0:00:03]} 34. Rdd1 {[%clk 0:00:33]}  Rfc8 {[%clk 0:00:04]} 35. Qe4 {[%clk 0:00:29]}  Rc4 {[%clk 0:00:04]} 36. Rd4 {[%clk 0:00:20]}  Rc2 {[%clk 0:00:03]} 37. Rad1 {[%clk 0:00:19]}  Qa5 {[%clk 0:00:02]} 38. Qe3 {[%clk 0:00:17]}  Rb2 {[%clk 0:00:01]} 39. Nd6 {[%clk 0:00:16]}  Rb4 {[%clk 0:00:02]} 40. Nxc8 {[%clk 0:00:16]} 1-0


[Site "https://www.chess.com"]

[Event "Titled Tuesday Blitz June 6 Early 2023"]
[White "Martinez Ramirez, Lennis"]
[Black "Babazada, Khazar"]
[WhiteFideId "3509079"]
[BlackFideId "13413554"]
[WhiteElo "2410"]
[BlackElo "2369"]
[Result "0-1"]
[Round "3"]
[TimeControl "180+2"]
[Date "2023.06.06"]
[WhiteClock "0:00:01"]
[BlackClock "0:00:29"]
[Board "19"]

1. c4 {[%clk 0:02:56]}  e5 {[%clk 0:03:00]} 2. Nc3 {[%clk 0:02:55]}  Nf6 {[%clk 0:02:59]} 3. Nf3 {[%clk 0:02:53]}  e4 {[%clk 0:02:58]} 4. Ng5 {[%clk 0:02:48]}  c6 {[%clk 0:02:56]} 5. Ngxe4 {[%clk 0:02:44]}  Nxe4 {[%clk 0:02:57]} 6. Nxe4 {[%clk 0:02:42]}  d5 {[%clk 0:02:58]} 7. cxd5 {[%clk 0:01:40]}  cxd5 {[%clk 0:02:59]} 8. Ng3 {[%clk 0:01:32]}  h5 {[%clk 0:02:59]} 9. e3 {[%clk 0:01:25]}  h4 {[%clk 0:02:59]} 10. Ne2 {[%clk 0:01:24]}  Qf6 {[%clk 0:02:59]} 11. h3 {[%clk 0:01:22]}  Nc6 {[%clk 0:02:57]} 12. d4 {[%clk 0:01:18]}  Bd6 {[%clk 0:02:37]} 13. Nc3 {[%clk 0:00:56]}  Qg6 {[%clk 0:02:34]} 14. a3 {[%clk 0:00:51]}  Bf5 {[%clk 0:02:33]} 15. Bd2 {[%clk 0:00:26]}  O-O {[%clk 0:02:16]} 16. Qf3 {[%clk 0:00:24]}  Rfe8 {[%clk 0:02:16]} 17. Be2 {[%clk 0:00:20]}  Bd3 {[%clk 0:02:16]} 18. O-O {[%clk 0:00:19]}  Bxe2 {[%clk 0:02:13]} 19. Nxe2 {[%clk 0:00:20]}  Qc2 {[%clk 0:02:12]} 20. Bc3 {[%clk 0:00:18]}  Ne7 {[%clk 0:02:08]} 21. Nf4 {[%clk 0:00:18]}  Bxf4 {[%clk 0:02:06]} 22. Qxf4 {[%clk 0:00:19]}  Ng6 {[%clk 0:02:05]} 23. Qf3 {[%clk 0:00:19]}  Re4 {[%clk 0:02:05]} 24. Rac1 {[%clk 0:00:19]}  Qb3 {[%clk 0:02:06]} 25. Rfd1 {[%clk 0:00:19]}  Rae8 {[%clk 0:02:04]} 26. Rd2 {[%clk 0:00:18]}  R8e6 {[%clk 0:02:04]} 27. Bb4 {[%clk 0:00:17]}  Rc6 {[%clk 0:02:02]} 28. Rxc6 {[%clk 0:00:17]}  bxc6 {[%clk 0:02:02]} 29. Qd1 {[%clk 0:00:04]}  Qc4 {[%clk 0:02:00]} 30. Rc2 {[%clk 0:00:04]}  Qa6 {[%clk 0:01:59]} 31. Qc1 {[%clk 0:00:04]}  Re6 {[%clk 0:01:58]} 32. Rc5 {[%clk 0:00:04]}  Rf6 {[%clk 0:01:58]} 33. Qc2 {[%clk 0:00:05]}  Qb7 {[%clk 0:01:52]} 34. Ra5 {[%clk 0:00:05]}  a6 {[%clk 0:01:36]} 35. Qe2 {[%clk 0:00:03]}  c5 {[%clk 0:01:35]} 36. Bxc5 {[%clk 0:00:03]}  Qc8 {[%clk 0:01:29]} 37. Ra4 {[%clk 0:00:03]}  Qe6 {[%clk 0:01:22]} 38. Rb4 {[%clk 0:00:03]}  Qf5 {[%clk 0:01:22]} 39. Rb8+ {[%clk 0:00:03]}  Kh7 {[%clk 0:01:21]} 40. Re8 {[%clk 0:00:04]}  Kh6 {[%clk 0:01:08]} 41. b4 {[%clk 0:00:04]}  Qd7 {[%clk 0:01:02]} 42. Ra8 {[%clk 0:00:02]}  Qa4 {[%clk 0:01:01]} 43. Ra7 {[%clk 0:00:02]}  Qb3 {[%clk 0:00:36]} 44. f3 {[%clk 0:00:03]}  Re6 {[%clk 0:00:34]} 45. e4 {[%clk 0:00:02]}  Nf4 {[%clk 0:00:33]} 46. Qd2 {[%clk 0:00:01]}  g5 {[%clk 0:00:34]} 47. e5 {[%clk 0:00:01]}  Nh5 {[%clk 0:00:29]} 48. Rxf7 {[%clk 0:00:01]}  Ng3 {[%clk 0:00:29]} 0-1


[Site "https://www.chess.com"]

[Event "Titled Tuesday Blitz June 6 Early 2023"]
[White "Elsa167"]
[Black "Kleiman, Jake"]
[BlackFideId "2020041"]
[WhiteElo "2915"]
[BlackElo "2676"]
[Result "1-0"]
[Round "3"]
[TimeControl "180+2"]
[Date "2023.06.06"]
[WhiteClock "0:00:08"]
[BlackClock "0:00:02"]
[Board "20"]

1. d4 {[%clk 0:03:00]}  Nf6 {[%clk 0:02:59]} 2. c4 {[%clk 0:03:01]}  e6 {[%clk 0:03:00]} 3. Nc3 {[%clk 0:03:01]}  Bb4 {[%clk 0:03:01]} 4. Qb3 {[%clk 0:03:01]}  c5 {[%clk 0:02:58]} 5. dxc5 {[%clk 0:03:01]}  Na6 {[%clk 0:02:54]} 6. a3 {[%clk 0:03:01]}  Bxc3+ {[%clk 0:02:52]} 7. Qxc3 {[%clk 0:03:02]}  Nxc5 {[%clk 0:02:53]} 8. f3 {[%clk 0:03:03]}  d6 {[%clk 0:02:52]} 9. b4 {[%clk 0:03:02]}  Ncd7 {[%clk 0:02:51]} 10. e4 {[%clk 0:03:02]}  O-O {[%clk 0:02:50]} 11. Bd3 {[%clk 0:02:46]}  Qc7 {[%clk 0:02:41]} 12. Ne2 {[%clk 0:02:44]}  b6 {[%clk 0:02:35]} 13. O-O {[%clk 0:02:42]}  Bb7 {[%clk 0:02:35]} 14. Bf4 {[%clk 0:02:41]}  Rac8 {[%clk 0:02:32]} 15. Rac1 {[%clk 0:02:38]}  Rfd8 {[%clk 0:02:25]} 16. Rfd1 {[%clk 0:02:37]}  Ne5 {[%clk 0:02:14]} 17. Bxe5 {[%clk 0:02:27]}  dxe5 {[%clk 0:02:15]} 18. Bb1 {[%clk 0:02:27]}  g6 {[%clk 0:02:05]} 19. Qe3 {[%clk 0:02:17]}  Rxd1+ {[%clk 0:01:59]} 20. Rxd1 {[%clk 0:02:17]}  Qxc4 {[%clk 0:01:59]} 21. h3 {[%clk 0:02:09]}  Kg7 {[%clk 0:01:56]} 22. Kh2 {[%clk 0:02:09]}  Qc7 {[%clk 0:01:48]} 23. Ng3 {[%clk 0:02:08]}  Rd8 {[%clk 0:01:37]} 24. Rc1 {[%clk 0:02:09]}  Qd6 {[%clk 0:01:35]} 25. Qg5 {[%clk 0:02:02]}  Qd2 {[%clk 0:01:15]} 26. Qxd2 {[%clk 0:02:02]}  Rxd2 {[%clk 0:01:15]} 27. Rc7 {[%clk 0:01:58]}  Rd7 {[%clk 0:01:15]} 28. Rc3 {[%clk 0:01:57]}  Kf8 {[%clk 0:01:02]} 29. Bd3 {[%clk 0:01:54]}  Ne8 {[%clk 0:00:56]} 30. Bb5 {[%clk 0:01:49]}  Rc7 {[%clk 0:00:56]} 31. Rd3 {[%clk 0:01:48]}  Ke7 {[%clk 0:00:47]} 32. Nf1 {[%clk 0:01:47]}  Nd6 {[%clk 0:00:45]} 33. Ba4 {[%clk 0:01:45]}  f5 {[%clk 0:00:46]} 34. exf5 {[%clk 0:01:41]}  gxf5 {[%clk 0:00:43]} 35. Ne3 {[%clk 0:01:34]}  e4 {[%clk 0:00:42]} 36. fxe4 {[%clk 0:01:34]}  Bxe4 {[%clk 0:00:42]} 37. Rd2 {[%clk 0:01:15]}  Rc3 {[%clk 0:00:42]} 38. Nf1 {[%clk 0:01:00]}  Rxa3 {[%clk 0:00:40]} 39. Bd1 {[%clk 0:01:01]}  Nc4 {[%clk 0:00:24]} 40. Rd4 {[%clk 0:00:58]}  Ne3 {[%clk 0:00:21]} 41. Nxe3 {[%clk 0:00:54]}  Rxe3 {[%clk 0:00:22]} 42. b5 {[%clk 0:00:51]}  Ra3 {[%clk 0:00:21]} 43. Be2 {[%clk 0:00:36]}  Ra2 {[%clk 0:00:18]} 44. Bf1 {[%clk 0:00:37]}  Bd5 {[%clk 0:00:16]} 45. Rh4 {[%clk 0:00:35]}  Kd6 {[%clk 0:00:12]} 46. Rxh7 {[%clk 0:00:36]}  f4 {[%clk 0:00:13]} 47. Kg1 {[%clk 0:00:32]}  Ke5 {[%clk 0:00:12]} 48. h4 {[%clk 0:00:31]}  Be4 {[%clk 0:00:13]} 49. Rf7 {[%clk 0:00:28]}  Bf5 {[%clk 0:00:12]} 50. h5 {[%clk 0:00:28]}  Ra1 {[%clk 0:00:09]} 51. Kf2 {[%clk 0:00:28]}  Ra2+ {[%clk 0:00:09]} 52. Kg1 {[%clk 0:00:29]}  Rc2 {[%clk 0:00:06]} 53. h6 {[%clk 0:00:28]}  Rc8 {[%clk 0:00:06]} 54. Rxa7 {[%clk 0:00:22]}  Kd6 {[%clk 0:00:07]} 55. Rb7 {[%clk 0:00:12]}  Kc5 {[%clk 0:00:06]} 56. h7 {[%clk 0:00:13]}  Rh8 {[%clk 0:00:06]} 57. Rc7+ {[%clk 0:00:13]}  Kd5 {[%clk 0:00:04]} 58. Rc6 {[%clk 0:00:12]}  Rxh7 {[%clk 0:00:04]} 59. Rxb6 {[%clk 0:00:12]}  Rc7 {[%clk 0:00:03]} 60. Rb8 {[%clk 0:00:12]}  Rc1 {[%clk 0:00:03]} 61. Kf2 {[%clk 0:00:13]}  Rc2+ {[%clk 0:00:03]} 62. Kf3 {[%clk 0:00:12]}  e5 {[%clk 0:00:02]} 63. Rd8+ {[%clk 0:00:11]}  Kc5 {[%clk 0:00:02]} 64. g4 {[%clk 0:00:08]} 1-0


[Site "https://www.chess.com"]

[Event "Titled Tuesday Blitz June 6 Early 2023"]
[White "Aravindh, Chithambaram VR."]
[Black "Ashraf, Artin"]
[WhiteFideId "5072786"]
[BlackFideId "22514805"]
[WhiteElo "2596"]
[BlackElo "2224"]
[Result "1-0"]
[Round "3"]
[TimeControl "180+2"]
[Date "2023.06.06"]
[WhiteClock "0:00:43"]
[BlackClock "0:00:02"]
[Board "21"]

1. b3 {[%clk 0:02:59]}  d5 {[%clk 0:02:58]} 2. Bb2 {[%clk 0:03:00]}  Nc6 {[%clk 0:02:59]} 3. Nf3 {[%clk 0:02:59]}  Bg4 {[%clk 0:02:59]} 4. d4 {[%clk 0:02:58]}  Bxf3 {[%clk 0:02:56]} 5. exf3 {[%clk 0:02:59]}  e6 {[%clk 0:02:55]} 6. Nd2 {[%clk 0:02:59]}  Bd6 {[%clk 0:02:54]} 7. g3 {[%clk 0:02:57]}  Qf6 {[%clk 0:02:35]} 8. f4 {[%clk 0:02:14]}  Nxd4 {[%clk 0:01:58]} 9. Rb1 {[%clk 0:02:14]}  c5 {[%clk 0:01:40]} 10. Bg2 {[%clk 0:02:13]}  Qg6 {[%clk 0:01:22]} 11. O-O {[%clk 0:02:11]}  Ne7 {[%clk 0:01:05]} 12. b4 {[%clk 0:01:51]}  b6 {[%clk 0:00:53]} 13. c3 {[%clk 0:01:48]}  Ndc6 {[%clk 0:00:50]} 14. bxc5 {[%clk 0:01:26]}  bxc5 {[%clk 0:00:39]} 15. Ne4 {[%clk 0:01:25]}  Bxf4 {[%clk 0:00:27]} 16. Nxc5 {[%clk 0:01:16]}  Bc7 {[%clk 0:00:17]} 17. c4 {[%clk 0:01:14]}  O-O {[%clk 0:00:17]} 18. cxd5 {[%clk 0:01:11]}  exd5 {[%clk 0:00:17]} 19. Re1 {[%clk 0:01:10]}  Rad8 {[%clk 0:00:14]} 20. Ba3 {[%clk 0:01:08]}  Bb6 {[%clk 0:00:13]} 21. Na4 {[%clk 0:01:05]}  Ba5 {[%clk 0:00:12]} 22. Rxe7 {[%clk 0:01:04]}  Nxe7 {[%clk 0:00:11]} 23. Bxe7 {[%clk 0:01:05]}  Rde8 {[%clk 0:00:04]} 24. Bxf8 {[%clk 0:01:05]}  Re1+ {[%clk 0:00:05]} 25. Qxe1 {[%clk 0:01:04]}  Bxe1 {[%clk 0:00:06]} 26. Rxe1 {[%clk 0:01:04]}  Kxf8 {[%clk 0:00:06]} 27. Bxd5 {[%clk 0:00:51]}  Qd3 {[%clk 0:00:04]} 28. Bb3 {[%clk 0:00:49]}  g6 {[%clk 0:00:04]} 29. Rd1 {[%clk 0:00:45]}  Qe4 {[%clk 0:00:04]} 30. Nc5 {[%clk 0:00:44]}  Qc6 {[%clk 0:00:04]} 31. Nd7+ {[%clk 0:00:43]}  Ke7 {[%clk 0:00:02]} 32. Ne5 {[%clk 0:00:44]}  Qe4 {[%clk 0:00:02]} 33. Nxf7 {[%clk 0:00:43]} 1-0


[Site "https://www.chess.com"]